bitfinex/quotes_ETHUSD_20250923
["timestamp","ask_amount","ask_price","bid_price","bid_amount"]
[1758590327018,5.29850299,4193.1,4193.0,0.1]
[1758590328057,2.38498413,4192.9,4192.8,0.004]
[1758590328254,8.06274717,4192.9,4192.8,0.004]
[1758590328552,8.75114717,4192.9,4192.8,0.004]
[1758590329126,6.36616304,4192.9,4192.8,0.004]
[1758590329635,8.75114717,4192.9,4192.8,0.004]
[1758590329836,10.02607913,4192.9,4192.8,0.004]
[1758590330055,13.02607913,4192.9,4192.8,0.004]
[1758590330259,11.75114717,4192.9,4192.8,0.004]
[1758590331226,2.38521168,4192.5,4192.4,0.004]
[1758590331585,12.30203161,4192.5,4192.4,0.004]
[1758590331725,12.99043161,4192.5,4192.4,0.004]
[1758590332047,11.71582425,4192.5,4192.4,0.004]
[1758590332826,12.98998927,4192.5,4192.4,0.004]
[1758590334228,11.71582425,4192.5,4192.4,0.004]
[1758590335364,11.71604167,4192.5,4192.4,0.004]
[1758590339482,11.71614079,4192.5,4192.4,0.004]
[1758590340664,18.9646812,4192.5,4192.4,0.004]
[1758590343997,19.81426477,4192.5,4192.4,0.004]
[1758590344886,19.81426477,4192.5,4192.3,0.004]
[1758590344887,5.38526858,4192.4,4192.3,0.004]
[1758590345204,8.68960074,4192.4,4192.3,0.004]
[1758590345611,9.37800074,4192.4,4192.3,0.004]
[1758590346313,10.20633158,4192.4,4192.3,0.004]
[1758590346517,10.42746796,4192.4,4192.3,0.2429]
[1758590346821,11.06436719,4192.4,4192.3,0.2429]
[1758590347017,7.85181098,4192.4,4192.3,0.2429]
[1758590347707,11.00670129,4192.4,4192.3,0.2429]
[1758590347906,11.00670129,4192.4,4192.3,0.004]
[1758590348080,7.98453348,4192.4,4192.3,0.004]
[1758590348280,7.85181098,4192.4,4192.3,0.004]
[1758590348614,12.365515,4192.4,4192.3,0.2429]
[1758590348802,12.365515,4192.4,4192.3,0.004]
[1758590349003,13.18665094,4192.4,4192.3,0.004]
[1758590349386,2.38543927,4192.1,4192.0,0.004]
[1758590349622,16.41426817,4192.1,4192.0,0.004]
[1758590349917,17.10266817,4192.1,4192.0,0.004]
[1758590350482,17.10269041,4192.1,4192.0,0.004]
[1758590351117,9.16575,4192.1,4192.0,0.004]
[1758590352032,5.77631073,4192.1,4192.0,0.2429]
[1758590352201,10.4177249,4192.1,4192.0,0.2429]
[1758590352613,10.2985249,4192.1,4192.0,0.2429]
[1758590352789,9.52835255,4192.1,4192.0,0.2429]
[1758590354804,9.52835255,4192.1,4192.0,0.004]
[1758590355134,12.04664616,4192.1,4192.0,0.004]
[1758590355336,12.85424616,4192.1,4192.0,0.004]
[1758590356840,13.70390707,4192.1,4192.0,0.004]
[1758590357015,12.85424616,4192.1,4192.0,0.004]
[1758590360815,2.38572382,4191.6,4191.5,0.004]
[1758590361016,31.57910965,4191.6,4191.5,0.004]
[1758590361338,32.26620965,4191.6,4191.5,0.004]
[1758590362043,32.26664524,4191.6,4191.5,0.004]
[1758590363109,30.98995965,4191.6,4191.5,0.004]
[1758590365512,2.38595151,4191.2,4191.1,0.024]
[1758590365713,14.06195902,4191.2,4191.1,0.024]
[1758590366022,14.74905902,4191.2,4191.1,0.024]
[1758590366345,13.44703492,4191.2,4191.1,0.024]
[1758590366544,13.89933492,4191.2,4191.1,0.024]
[1758590370331,13.89933492,4191.2,4190.5,0.004]
[1758590370332,2.38629313,4190.6,4190.5,0.004]
[1758590370531,10.37239404,4190.6,4190.5,0.004]
[1758590370833,11.90829825,4190.6,4190.5,0.004]
[1758590371967,11.05949404,4190.6,4190.5,0.004]
[1758590372469,11.90769831,4190.6,4190.5,0.004]
[1758590372685,14.35053591,4190.6,4190.5,0.004]
[1758590375141,14.34934776,4190.6,4190.5,0.004]
[1758590375345,13.50114349,4190.6,4190.5,0.004]
[1758590376759,19.77199881,4190.6,4190.5,0.004]
[1758590377471,26.83199881,4190.6,4190.5,0.004]
[1758590381534,33.10285413,4190.6,4190.5,0.004]
[1758590381735,32.88208028,4190.6,4190.5,0.004]
[1758590381961,33.10276979,4190.6,4190.5,0.004]
[1758590383190,33.95097406,4190.6,4190.5,0.004]
[1758590385188,33.10276979,4190.6,4190.5,0.004]
[1758590385716,2.38652092,4190.2,4190.1,0.02]
[1758590386011,2.38652092,4190.2,4189.6,0.004]
[1758590386012,2.38680573,4189.7,4189.6,0.004]
[1758590386193,10.24016984,4189.7,4189.6,0.004]
[1758590386600,10.37288939,4189.7,4189.6,0.004]
[1758590387112,11.68383879,4189.7,4189.6,0.004]
[1758590387408,12.50136864,4189.7,4189.6,0.004]
[1758590388226,11.86481924,4189.7,4189.6,0.004]
[1758590389115,11.86481924,4189.7,4189.6,0.2347]
[1758590390487,11.86481924,4189.7,4189.6,0.004]
[1758590390828,12.53921924,4189.7,4189.6,0.004]
[1758590391035,0.792,4189.5,4188.4,0.2307]
[1758590391206,6.27085532,4188.6,4188.5,0.6803]
[1758590391393,4.73416411,4188.6,4188.5,0.6803]
[1758590391594,10.78432992,4188.6,4188.5,0.6803]
[1758590391793,11.00541495,4188.6,4188.5,0.6803]
[1758590392017,10.78432992,4188.6,4188.5,0.6803]
[1758590393231,11.00539698,4188.6,4188.5,0.6803]
[1758590393803,10.78432992,4188.6,4188.5,0.6803]
[1758590394034,4.5134746,4188.6,4188.5,0.6803]
[1758590394329,4.5134746,4188.6,4188.5,3.06778955]
[1758590395128,0.5074746,4188.6,4188.5,3.06778955]
[1758590395329,2.70093962,4189.2,4188.6,2.38743255]
[1758590395627,0.50938434,4189.1,4189.0,2.38720458]
[1758590395924,4.51538434,4189.1,4189.0,0.6803]
[1758590396325,4.51538434,4189.1,4188.9,0.1192]
[1758590396502,0.50938434,4189.0,4188.9,0.1192]
[1758590396827,0.50938434,4189.0,4188.9,2.50646157]
[1758590397003,4.41538434,4189.0,4188.9,2.95606157]
[1758590397208,4.41538434,4189.0,4188.9,3.18676157]
[1758590397525,4.006,4189.0,4188.9,0.7995]
[1758590397731,0.63693962,4189.5,4188.9,0.7995]
[1758590397945,4.2272944,4189.4,4189.0,0.6803]
[1758590398163,0.63693962,4189.7,4189.3,0.1192]
[1758590398375,0.22135107,4189.6,4189.4,0.6803]
[1758590398571,4.006,4189.7,4189.5,0.6803]
[1758590398775,4.006,4189.7,4189.6,0.7995]
[1758590399074,4.22733531,4189.7,4189.6,0.7995]
[1758590399224,4.22733531,4189.7,4189.6,0.3499]
[1758590400276,4.22733531,4189.7,4189.6,0.1192]
[1758590400566,13.29464481,4189.7,4189.0,0.2307]
[1758590400770,2.60820155,4189.6,4189.0,0.2307]
[1758590400931,4.22733531,4189.5,4189.0,0.2307]
[1758590401260,0.22133531,4189.4,4189.0,0.6803]
[1758590401461,0.63693962,4189.8,4189.2,2.38709061]
[1758590401804,4.2273865,4189.7,4189.3,3.06728699]
[1758590401929,0.2213865,4189.6,4189.3,2.38698699]
[1758590402130,4.006,4189.5,4189.4,0.6803]
[1758590402326,4.006,4189.5,4188.1,0.812]
[1758590402571,4.006,4189.5,4189.4,0.2307]
[1758590402858,0.63693962,4189.9,4189.4,0.6803]
[1758590403074,12.88501829,4189.8,4189.5,0.2307]
[1758590403235,12.88501829,4189.8,4189.0,2.83680439]
[1758590403236,0.22140424,4189.7,4189.1,0.2307]
[1758590403426,4.22740424,4189.6,4189.2,0.2307]
[1758590403625,0.22140424,4189.5,4189.2,0.6803]
[1758590403858,4.006,4189.4,4189.3,0.6803]
[1758590404435,0.63693962,4189.9,4189.3,0.6803]
[1758590404645,4.007,4190.0,4189.7,2.3868057]
[1758590404846,0.221748,4189.9,4189.8,3.06704877]
[1758590405042,0.221748,4189.9,4189.8,2.38674877]
[1758590405626,0.221748,4189.9,4189.8,3.06704877]
[1758590405858,0.001,4190.0,4189.9,2.3866918]
[1758590406050,4.22868629,4190.0,4189.9,3.0669918]
[1758590406226,0.001,4190.0,4189.9,3.0669918]
[1758590406428,0.001,4190.0,4189.9,3.61237155]
[1758590407766,0.001,4190.0,4189.9,2.6173918]
[1758590408668,4.2475,4190.0,4189.4,2.61762621]
[1758590408960,4.6814,4190.0,4189.4,2.61762621]
[1758590409163,0.51043165,4189.9,4189.4,2.61762621]
[1758590409379,0.51043165,4189.8,4189.5,0.2307]
[1758590409540,4.007,4190.0,4189.6,0.2307]
[1758590409735,0.51040809,4189.9,4189.6,0.2347]
[1758590410072,0.51040809,4189.8,4189.6,0.2347]
[1758590410266,4.007,4190.0,4189.6,0.2347]
[1758590410478,4.007,4190.0,4189.6,0.004]
[1758590410479,1.17378841,4189.9,4189.6,0.004]
[1758590410642,0.51038483,4189.8,4189.6,0.004]
[1758590410966,0.51036637,4189.7,4189.6,0.004]
[1758590411740,6.071,4190.0,4189.7,2.38678735]
[1758590411741,4.006,4189.9,4189.7,2.38678735]
[1758590411946,4.006,4189.9,4189.8,0.2307]
[1758590412263,4.51620422,4189.9,4189.8,0.2307]
[1758590412966,5.19060422,4189.9,4189.6,0.1232]
[1758590413213,1.23576464,4189.8,4189.6,0.1232]
[1758590413367,1.39996042,4189.8,4189.6,0.1232]
[1758590413564,0.72556042,4189.8,4189.6,0.1232]
[1758590413769,0.6744,4189.7,4189.6,0.1232]
[1758590414691,1.18445821,4189.7,4189.6,0.1232]
[1758590415080,2.22122374,4189.7,4189.6,0.1232]
[1758590415279,2.22099665,4189.7,4189.6,0.1232]
[1758590415500,2.22099665,4189.7,4189.6,0.004]
[1758590417272,2.4422282,4189.7,4189.6,0.004]
[1758590417467,2.22099665,4189.7,4189.6,0.004]
[1758590417791,1.54659665,4189.7,4189.6,0.004]
[1758590417993,0.50983112,4189.7,4189.6,0.004]
[1758590418196,0.50983112,4189.7,4189.6,0.2422]
[1758590419208,4.006,4189.7,4189.6,0.8016]
[1758590419571,4.51575759,4189.7,4189.6,0.1232]
[1758590420201,4.97093073,4189.7,4189.6,0.1232]
[1758590421429,4.51575759,4189.7,4189.6,0.1232]
[1758590422234,4.73712314,4189.7,4189.6,0.1232]
[1758590422531,5.44292314,4189.7,4189.6,0.004]
[1758590423200,4.73712314,4189.7,4189.6,0.004]
[1758590423400,5.41777327,4189.7,4189.6,0.004]
[1758590424115,4.73712314,4189.7,4189.6,0.2422]
[1758590424795,4.73712314,4189.7,4189.6,3.0692627]
[1758590425103,0.001,4190.0,4189.9,2.3866918]
[1758590425308,4.73943042,4190.0,4189.9,2.6248918]
[1758590425715,4.73943042,4190.0,4189.6,0.004]
[1758590425917,0.73243042,4189.9,4189.6,2.39085]
[1758590426227,0.001,4190.0,4189.8,2.38674877]
[1758590426430,4.51684498,4189.9,4189.8,2.38674877]
[1758590427123,4.51684498,4189.9,4189.8,2.62494877]
[1758590428124,4.51684498,4189.9,4189.8,0.2382]
[1758590428324,4.51684498,4189.9,4189.7,2.3867638]
[1758590428629,0.51084498,4189.8,4189.7,2.6249638]
[1758590428825,0.51084498,4189.8,4189.6,2.39083428]
[1758590429127,4.51584498,4189.7,4189.6,0.004]
[1758590429329,5.89503162,4189.7,4189.6,0.004]
[1758590430698,6.66497448,4189.7,4189.6,0.004]
[1758590431099,5.95917448,4189.7,4189.6,0.004]
[1758590431293,6.20157448,4189.7,4189.6,0.004]
[1758590431532,6.66497448,4189.7,4189.6,0.004]
[1758590432320,4.73754712,4189.7,4189.6,0.004]
[1758590432908,6.21325733,4189.7,4189.6,0.004]
[1758590433434,0.73254712,4189.7,4189.6,0.004]
[1758590433734,4.73754712,4189.7,4189.6,0.004]
[1758590434629,4.97994712,4189.7,4189.6,0.004]
[1758590434931,6.03314117,4189.7,4189.6,0.004]
[1758590435332,6.49654117,4189.7,4189.6,0.004]
[1758590435551,0.73254712,4189.7,4189.6,2.3908627]
[1758590435700,4.73854712,4189.7,4189.6,2.6290627]
[1758590436035,4.73854712,4189.7,4189.6,0.3614]
[1758590436538,8.6010892,4189.7,4189.6,0.004]
[1758590436734,13.94099896,4189.7,4189.6,0.004]
[1758590436939,13.09174613,4189.7,4189.6,0.004]
[1758590438211,14.06216793,4189.7,4189.6,0.004]
[1758590438937,13.21094613,4189.7,4189.6,0.004]
[1758590439734,20.46565835,4189.7,4189.6,0.004]
[1758590439934,21.73953759,4189.7,4189.6,0.004]
[1758590440236,2.38709061,4189.2,4189.1,0.004]
[1758590440541,18.767745,4189.2,4189.1,0.004]
[1758590440717,19.473545,4189.2,4189.1,0.004]
[1758590440918,18.62298228,4189.2,4189.1,0.004]
[1758590441423,19.47317239,4189.2,4189.1,0.004]
[1758590442843,18.62298228,4189.2,4189.1,0.004]
[1758590443138,19.89882636,4189.2,4189.1,0.004]
[1758590443340,18.6225555,4189.2,4189.1,0.004]
[1758590443504,19.89839958,4189.2,4189.1,0.004]
[1758590444226,18.6225555,4189.2,4189.1,0.004]
[1758590446029,19.8980562,4189.2,4189.1,0.004]
[1758590446230,18.62221212,4189.2,4189.1,0.004]
[1758590448738,14.61421212,4189.2,4189.1,0.004]
[1758590448944,18.62321212,4189.2,4189.1,0.004]
[1758590450954,17.91741212,4189.2,4189.1,0.004]
[1758590451246,17.91641212,4189.2,4189.1,0.004]
[1758590451413,20.64351212,4189.2,4189.1,0.004]
[1758590451615,21.49166075,4189.2,4189.1,0.004]
[1758590452009,21.49116143,4189.2,4189.1,0.004]
[1758590454018,20.6430128,4189.2,4189.1,0.004]
[1758590454532,13.9079128,4189.2,4189.1,0.004]
[1758590454737,13.98189976,4189.2,4189.1,0.2409]
[1758590454920,16.98189976,4189.2,4189.1,0.6902]
[1758590455120,13.98189976,4189.2,4189.1,0.6902]
[1758590455422,19.59919037,4189.2,4189.1,0.004]
[1758590455754,21.62271949,4189.2,4189.1,0.004]
[1758590457139,22.25882032,4189.2,4189.1,0.004]
[1758590457341,22.39142859,4189.2,4189.1,0.004]
[1758590457541,22.16122859,4189.2,4189.1,0.004]
[1758590457860,22.18822776,4189.2,4189.1,0.004]
[1758590458968,23.03637639,4189.2,4189.1,0.004]
[1758590459744,22.18822776,4189.2,4189.1,0.004]
[1758590460162,21.52512776,4189.2,4189.1,0.004]
[1758590460461,22.37327639,4189.2,4189.1,0.004]
[1758590461542,13.91518578,4189.2,4189.1,0.004]
[1758590461746,11.79869976,4189.2,4189.1,0.6902]
[1758590461950,4.73869976,4189.2,4189.1,0.6902]
[1758590462264,4.73768148,4189.2,4189.1,0.2409]
[1758590462650,4.73768148,4189.2,4189.1,0.6902]
[1758590464184,4.73768148,4189.2,4189.1,3.07734759]
[1758590464555,4.22785478,4189.2,4189.1,3.07734759]
[1758590464763,0.22085478,4189.2,4189.1,3.07734759]
[1758590465071,4.22785478,4189.2,4189.1,3.07734759]
[1758590465276,4.73799011,4189.2,4189.1,3.07734759]
[1758590465673,0.73099011,4189.2,4189.1,3.39740235]
[1758590466041,0.84814863,4190.2,4189.1,1.80225476]
[1758590466248,0.021,4190.9,4189.9,0.792]
[1758590466462,0.0037,4190.9,4190.8,3.17817924]
[1758590466755,1e-08,4190.9,4190.8,9.77188248]
[1758590467079,1e-08,4190.9,4190.8,9.74802069]
[1758590467372,0.001,4192.3,4191.7,0.792]
[1758590467563,0.001,4192.3,4191.8,2.4094661]
[1758590468140,0.001,4192.3,4191.8,3.2014661]
[1758590468337,1e-08,4191.9,4191.8,6.2014661]
[1758590468579,1e-08,4191.9,4191.8,6.17761]
[1758590468751,1e-08,4191.9,4191.8,6.99755385]
[1758590472109,0.001,4192.3,4192.2,3.17738237]
[1758590472297,0.001,4192.3,4192.2,10.24123619]
[1758590472494,0.001,4192.3,4192.2,10.21738237]
[1758590472792,0.001,4193.1,4193.0,2.38492725]
[1758590472994,0.001,4193.1,4193.0,7.21492725]
[1758590474007,0.001,4193.1,4193.0,7.31046869]
[1758590475902,1e-08,4193.3,4193.2,6.1768135]
[1758590476101,2.083,4194.9,4193.5,0.792]
[1758590476102,1e-08,4193.9,4193.5,0.792]
[1758590476302,1e-08,4193.9,4193.8,3.17647231]
[1758590476471,1e-08,4193.9,4193.8,3.29567231]
[1758590476904,1e-08,4193.9,4193.8,3.31951703]
[1758590477409,1e-08,4193.9,4193.8,6.31951703]
[1758590477591,1e-08,4193.9,4193.8,6.29567231]
[1758590477800,1e-08,4193.9,4193.8,6.74920523]
[1758590478387,1e-08,4193.9,4193.8,12.84720523]
[1758590484209,0.00100001,4193.9,4193.8,12.84720523]
[1758590486921,0.00100001,4193.9,4193.8,19.84520523]
[1758590487607,0.00100001,4193.9,4193.8,12.84520523]
[1758590488533,0.00100001,4193.9,4193.8,6.74920523]
[1758590488737,0.00100001,4193.9,4193.8,12.83920523]
[1758590488904,1e-08,4193.9,4193.8,12.83920523]
[1758590489101,0.4355,4194.1,4194.0,3.1763586]
[1758590489301,0.001,4194.4,4194.3,3.17618806]
[1758590489537,0.001,4194.4,4194.3,7.32438806]
[1758590489831,0.4365,4194.4,4194.3,7.32438806]
[1758590490201,0.4365,4194.4,4194.3,6.53138806]
[1758590490811,0.6779,4194.4,4194.3,6.53138806]
[1758590491223,0.8968246,4194.4,4194.3,6.53238806]
[1758590491422,1.40109532,4194.4,4194.3,6.53238806]
[1758590493845,1.40109532,4194.4,4194.3,2.50338806]
[1758590494339,1.40109532,4194.4,4194.3,6.53038806]
[1758590496003,2.67031205,4194.4,4194.3,6.53038806]
[1758590496207,1.40109532,4194.4,4194.3,2.33307577]
[1758590496404,1.40109532,4194.4,4194.3,4.71726383]
[1758590496948,1.84288541,4194.4,4193.8,4.026]
[1758590497246,1.69738676,4194.1,4194.0,2.3843586]
[1758590497540,3.23010837,4194.1,4194.0,2.3843586]
[1758590498242,1.53272161,4194.1,4194.0,2.3843586]
[1758590499150,1.53528244,4194.1,4194.0,2.3843586]
[1758590502615,1.53528244,4194.1,4193.2,2.3848135]
[1758590502847,1.53528244,4194.0,4193.9,2.38441546]
[1758590503049,1.53528244,4194.0,4193.7,2.19206255]
[1758590503377,0.001,4194.4,4194.1,2.38424528]
[1758590503554,0.86615252,4194.3,4193.9,2.38441546]
[1758590503754,1.54305252,4194.2,4193.9,2.3844045]
[1758590503953,1.54305252,4194.1,4194.0,2.3843586]
[1758590505637,1.54305252,4194.1,4193.9,2.38439965]
[1758590505952,3.25303096,4194.0,4193.9,2.38440426]
[1758590506130,1.54915252,4194.0,4193.9,2.38440426]
[1758590506732,1.54912209,4194.0,4193.9,2.38440426]
[1758590506932,1.54912209,4194.0,4193.9,2.50360426]
[1758590510283,2.8266966,4194.0,4193.9,2.50360426]
[1758590511255,1.54912209,4194.0,4193.9,2.50360426]
[1758590512188,2.40089502,4194.0,4193.9,2.50360426]
[1758590513298,1.54912209,4194.0,4193.9,2.50360426]
[1758590514885,1.54912209,4194.0,4193.9,0.1192]
[1758590515086,1.78921159,4194.0,4193.9,0.1192]
[1758590515357,2.64117076,4194.0,4193.9,0.1192]
[1758590515555,1.78921159,4194.0,4193.9,2.50361546]
[1758590518313,1.7892441,4194.0,4193.9,2.50361546]
[1758590519096,1.656093,4194.0,4193.9,2.50361546]
[1758590519485,1.4160035,4194.0,4193.9,2.50361546]
[1758590520290,1.4160035,4194.0,4193.9,0.1192]
[1758590520557,1.54920226,4194.0,4193.9,0.1192]
[1758590520756,7.80553934,4194.0,4193.9,0.1192]
[1758590520986,7.80653934,4194.0,4193.6,0.004]
[1758590521186,2.37188246,4193.9,4193.6,0.004]
[1758590521386,0.64436838,4193.8,4193.6,0.004]
[1758590521578,4.52216962,4193.7,4193.6,2.38853464]
[1758590521774,5.20516962,4193.7,4193.6,0.004]
[1758590523057,4.694,4193.7,4193.6,0.004]
[1758590523384,5.205455,4193.7,4193.6,0.004]
[1758590523685,5.205455,4193.7,4193.6,2.38858603]
[1758590524087,4.694,4193.7,4193.6,2.38858603]
[1758590524296,4.012,4194.0,4193.9,2.38441546]
[1758590524585,0.001,4194.0,4193.9,3.55505961]
[1758590526463,0.001,4194.0,4193.9,3.53121546]
[1758590526668,0.001,4194.0,4193.9,6.55505961]
[1758590526882,0.001,4194.0,4193.9,7.430646]
[1758590527077,0.001,4194.0,4193.9,11.442646]
[1758590527280,0.001,4194.0,4193.9,13.504646]
[1758590527997,0.001,4194.0,4193.9,7.430646]
[1758590528181,0.001,4194.0,4193.9,13.504646]
[1758590532201,1e-08,4194.5,4194.4,6.17613122]
[1758590532402,1e-08,4194.5,4194.4,10.79697624]
[1758590532602,1e-08,4194.5,4194.4,11.03357624]
[1758590532898,1e-08,4194.5,4194.4,13.09457624]
[1758590533499,1e-08,4194.5,4194.4,7.02057624]
[1758590533686,1e-08,4194.5,4194.4,13.09357624]
[1758590534982,1e-08,4194.5,4194.4,12.85797624]
[1758590535625,1e-08,4194.5,4194.4,13.08667624]
[1758590535977,1e-08,4194.5,4194.4,12.85997624]
[1758590536524,1e-08,4194.5,4194.4,13.10157624]
[1758590537820,1e-08,4194.5,4194.4,3.78497624]
[1758590537976,0.69330001,4194.5,4194.4,9.85997624]
[1758590538182,1e-08,4194.5,4194.4,9.85997624]
[1758590540017,1e-08,4194.5,4194.4,3.78497624]
[1758590540177,1e-08,4194.5,4194.4,7.30833122]
[1758590540178,0.69330001,4194.5,4194.4,7.30833122]
[1758590540375,1e-08,4194.5,4194.4,7.30833122]
[1758590540981,0.4575,4194.7,4194.6,3.17601754]
[1758590541207,0.6933,4194.7,4194.6,7.18901754]
[1758590544933,0.001,4194.8,4194.7,2.38396071]
[1758590545426,0.001,4194.8,4194.7,2.50316071]
[1758590548337,0.001,4194.8,4194.7,3.29516071]
[1758590548634,0.001,4194.8,4194.7,4.34357854]
[1758590549609,1e-08,4194.9,4194.8,3.17590388]
[1758590549804,1e-08,4194.9,4194.8,7.42750388]
[1758590551094,0.001,4195.0,4194.8,7.42750388]
[1758590551095,0.001,4195.0,4194.9,10.17584704]
[1758590551299,0.02,4195.9,4195.6,2.38341599]
[1758590551499,0.02,4195.9,4195.8,3.17533571]
[1758590551733,0.02,4195.9,4195.8,3.29453571]
[1758590551928,0.02,4195.9,4195.8,3.55996906]
[1758590552321,0.02,4195.9,4195.8,4.03549097]
[1758590552518,0.02,4196.9,4196.4,3.17499494]
[1758590552719,0.02,4196.9,4196.8,3.17476782]
[1758590552918,0.02,4196.9,4196.8,7.18676782]
[1758590553114,0.02,4196.9,4196.8,7.42836782]
[1758590553318,0.02,4196.9,4196.8,7.52742555]
[1758590554520,0.02,4196.9,4196.8,7.18576782]
[1758590554733,0.7133,4196.9,4196.8,7.18576782]
[1758590555354,0.02,4196.9,4196.8,7.18576782]
[1758590555976,0.02,4196.9,4196.8,7.42736782]
[1758590556457,0.02,4196.9,4196.8,7.18576782]
[1758590557348,0.021,4196.9,4196.8,7.18576782]
[1758590560468,0.021,4196.9,4196.8,7.42736782]
[1758590560647,0.021,4196.9,4196.8,7.18576782]
[1758590562673,0.021,4196.9,4196.8,7.30496782]
[1758590562876,0.021,4196.9,4196.8,7.54656782]
[1758590563371,0.021,4196.9,4196.8,7.30496782]
[1758590564874,0.021,4196.9,4196.8,14.30496782]
[1758590565865,0.021,4196.9,4196.8,7.1192]
[1758590566068,0.7033,4196.9,4196.8,9.38276782]
[1758590566268,0.7033,4196.9,4196.8,7.17976782]
[1758590566269,0.021,4196.9,4196.8,7.17976782]
[1758590567271,0.7033,4196.9,4196.8,7.18076782]
[1758590567588,0.021,4196.9,4196.8,7.18076782]
[1758590567743,0.021,4196.9,4196.8,8.1612923]
[1758590568574,0.021,4196.9,4196.8,4.1552923]
[1758590568765,0.021,4196.9,4196.8,8.1612923]
[1758590568766,0.7033,4196.9,4196.8,8.1612923]
[1758590569563,0.7033,4196.9,4196.8,3.17476782]
[1758590569885,0.7033,4196.9,4196.8,7.18076782]
[1758590571385,0.7033,4196.9,4196.8,14.18076782]
[1758590572792,0.7033,4196.9,4196.8,10.17476782]
[1758590572999,0.7033,4196.9,4196.8,13.38876782]
[1758590573747,0.7033,4196.9,4196.8,6.38876782]
[1758590574589,0.7033,4196.9,4196.8,2.38276782]
[1758590574750,0.7033,4196.9,4196.8,4.004]
[1758590575400,0.7033,4196.9,4196.8,6.38676782]
[1758590575899,0.469,4196.9,4196.8,6.38676782]
[1758590576056,0.7033,4196.9,4196.8,6.50596782]
[1758590576889,0.7033,4196.9,4195.8,0.004]
[1758590577068,0.22134958,4196.8,4195.8,4.009]
[1758590577408,0.021,4196.9,4196.0,2.38322211]
[1758590577550,0.021,4196.9,4196.8,2.38276782]
[1758590577897,0.2343,4196.8,4196.5,4.019]
[1758590578049,0.6823,4196.7,4196.6,2.38288138]
[1758590580403,0.6823,4196.7,4195.8,0.004]
[1758590580404,0.90427853,4196.7,4195.8,0.004]
[1758590580605,1.03804062,4196.6,4195.9,4.019]
[1758590580760,0.90427853,4196.5,4196.2,2.3830612]
[1758590580959,0.22197853,4196.4,4196.0,2.38320919]
[1758590581155,0.22197853,4196.3,4195.8,0.004]
[1758590581407,0.22197853,4196.2,4195.9,2.38327891]
[1758590581569,5.38283728,4196.7,4195.9,2.38327891]
[1758590581755,3.08134682,4196.6,4195.9,2.38327891]
[1758590581951,1.41552886,4196.5,4195.9,2.38327891]
[1758590582153,0.90423986,4196.4,4195.9,2.38327891]
[1758590582366,0.90423986,4196.3,4195.9,2.38327891]
[1758590582567,0.6823,4196.2,4195.9,2.38327891]
[1758590582801,0.6823,4196.1,4195.9,2.38327891]
[1758590583111,1.83029976,4196.5,4195.8,0.004]
[1758590583112,0.6823,4196.0,4195.8,0.004]
[1758590583484,0.448,4195.9,4195.8,0.004]
[1758590583681,0.448,4195.9,4195.8,2.38733571]
[1758590583893,0.6823,4195.9,4195.8,0.004]
[1758590584284,0.9888422,4195.9,4195.8,0.004]
[1758590584933,0.6823,4195.9,4195.8,0.004]
[1758590585781,0.90376639,4195.9,4195.8,0.004]
[1758590586012,3.90376639,4195.9,4195.8,0.004]
[1758590587502,3.90355676,4195.9,4195.8,0.004]
[1758590588012,3.6823,4195.9,4195.8,0.004]
[1758590588309,4.70277643,4195.9,4195.8,0.004]
[1758590589402,7.08605534,4195.9,4195.8,0.004]
[1758590590180,14.32139769,4195.9,4195.8,0.004]
[1758590590810,4.70277643,4195.9,4195.8,0.004]
[1758590592316,6.76277643,4195.9,4195.8,0.004]
[1758590592701,3.0,4195.9,4195.8,0.004]
[1758590593013,7.6983,4195.9,4195.8,0.1232]
[1758590594013,7.2503,4195.9,4195.8,0.1232]
[1758590594215,7.6983,4195.9,4195.8,0.1232]
[1758590595480,7.016,4195.9,4195.8,0.1232]
[1758590595909,8.47682,4195.9,4195.8,0.1232]
[1758590596387,4.46082,4195.9,4195.8,0.1232]
[1758590596592,7.7042,4195.9,4195.8,0.1232]
[1758590597397,7.7042,4195.9,4195.8,0.004]
[1758590598102,7.014,4195.9,4195.8,0.004]
[1758590598614,7.2535,4195.9,4195.8,0.004]
[1758590598980,7.6818,4195.9,4195.8,0.004]
[1758590599186,8.4619,4195.9,4195.8,0.004]
[1758590599408,7.7941,4195.9,4195.8,0.004]
[1758590599815,3.7801,4195.9,4195.8,0.004]
[1758590600017,7.015,4195.9,4195.8,0.004]
[1758590600581,7.6828,4195.9,4195.8,0.004]
[1758590602516,7.90417367,4195.9,4195.8,0.004]
[1758590602889,7.015,4195.9,4195.8,0.004]
[1758590603289,7.23645846,4195.9,4195.8,0.004]
[1758590604283,7.47595846,4195.9,4195.8,0.004]
[1758590604924,7.23645846,4195.9,4195.8,0.004]
[1758590605324,7.96010431,4195.9,4195.8,0.004]
[1758590605619,8.19960431,4195.9,4195.8,0.004]
[1758590605823,8.62790431,4195.9,4195.8,0.004]
[1758590608240,9.13932228,4195.9,4195.8,0.004]
[1758590609319,9.27261308,4195.9,4195.8,0.004]
[1758590610740,12.41534493,4195.9,4195.8,0.004]
[1758590611127,11.77577094,4195.9,4195.8,0.004]
[1758590611511,18.83577094,4195.9,4195.8,0.004]
[1758590613747,18.83581317,4195.9,4195.8,0.004]
[1758590614843,19.68777234,4195.9,4195.8,0.004]
[1758590615743,18.83581317,4195.9,4195.8,0.004]
[1758590620872,18.83573347,4195.9,4195.8,0.004]
[1758590621578,19.68769264,4195.9,4195.8,0.004]
[1758590621871,25.93997846,4195.9,4195.8,0.004]
[1758590622073,25.08801929,4195.9,4195.8,0.004]
[1758590622275,21.07301929,4195.9,4195.8,0.004]
[1758590622473,27.9926065,4195.9,4195.8,0.004]